bitfinex-derivatives/quotes_SOLF0:USTF0_20250318
["timestamp","ask_amount","ask_price","bid_price","bid_amount"]
[1742257442831,5.06388867,127.92,127.89,10.87563192]
[1742257443027,7.8192,127.9,127.89,10.87563192]
[1742257445038,7.8189,127.91,127.89,10.87563192]
[1742257445341,5.06388867,127.92,127.89,10.87563192]
[1742257445538,7.8192,127.9,127.89,10.87563192]
[1742257446437,9.8602,127.91,127.89,10.87563192]
[1742257446738,9.8602,127.91,127.88,0.0535244]
[1742257448137,7.8192,127.9,127.88,0.0535244]
[1742257448541,7.87588524,127.9,127.88,0.0535244]
[1742257449733,7.8198,127.89,127.88,0.0535244]
[1742257458345,7.822,127.86,127.83,5.06388867]
[1742257458740,5.06388867,127.86,127.81,262.94388867]
[1742257459749,7.87570615,127.85,127.82,0.05502774]
[1742257460242,0.05300615,127.85,127.82,0.05502774]
[1742257461044,0.05300615,127.85,127.83,7.8231]
[1742257461645,0.05300615,127.85,127.82,7.87902774]
[1742257462038,0.05300615,127.85,127.82,0.05502774]
[1742257462241,12.88728867,127.84,127.82,0.05502774]
[1742257462549,5.06388867,127.83,127.8,43.5025277]
[1742257462952,7.8244,127.82,127.8,40.2233277]
[1742257463144,5.06388867,127.83,127.8,40.2233277]
[1742257463350,5.06388867,127.83,127.78,7.8263]
[1742257463647,5.06388867,127.83,127.77,67.9233277]
[1742257463847,0.05862396,127.82,127.79,0.05207647]
[1742257465048,0.05862396,127.82,127.81,7.8247]
[1742257465442,0.05862396,127.82,127.8,12.88888867]
[1742257466547,0.05862396,127.82,127.8,7.825]
[1742257467051,0.05862396,127.82,127.79,7.87767647]
[1742257468755,0.05862396,127.82,127.79,0.05207647]
[1742257469047,5.12251263,127.82,127.79,0.05207647]
[1742257469249,7.825,127.81,127.79,0.05207647]
[1742257472644,40.64681263,127.82,127.79,0.05207647]
[1742257475749,40.64681263,127.82,127.79,7.87797647]
[1742257477446,40.64681263,127.82,127.79,0.05207647]
[1742257477651,7.8249,127.81,127.79,0.05207647]
[1742257480253,32.82251263,127.82,127.79,7.87767647]
[1742257482059,40.64691263,127.82,127.79,0.05207647]
[1742257482756,7.8248,127.81,127.79,0.05207647]
[1742257484258,32.82251263,127.82,127.79,0.05207647]
[1742257484457,32.82251263,127.82,127.79,7.87767647]
[1742257485057,32.82251263,127.82,127.79,0.05207647]
[1742257485564,40.64691263,127.82,127.79,0.05207647]
[1742257485757,40.64691263,127.82,127.79,7.87787647]
[1742257486064,32.82251263,127.82,127.79,7.87787647]
[1742257486256,32.82251263,127.82,127.79,0.05207647]
[1742257486763,40.64691263,127.82,127.79,0.05207647]
[1742257489463,7.8248,127.81,127.79,0.05207647]
[1742257490263,32.82251263,127.82,127.79,0.05207647]
[1742257490264,40.64691263,127.82,127.79,0.05207647]
[1742257490860,7.8248,127.81,127.79,0.05207647]
[1742257492675,40.64681263,127.82,127.79,0.05207647]
[1742257492868,27.75862396,127.82,127.79,0.05207647]
[1742257493269,27.75862396,127.82,127.79,7.87767647]
[1742257495175,27.75862396,127.82,127.8,7.825]
[1742257495372,0.05862396,127.82,127.8,7.825]
[1742257495577,0.05862396,127.82,127.8,12.88888867]
[1742257497779,0.05862396,127.82,127.8,5.06388867]
[1742257498182,27.77862396,127.82,127.79,0.05207647]
[1742257498380,5.06388867,127.81,127.79,0.05207647]
[1742257498883,12.88898867,127.81,127.79,0.05207647]
[1742257499285,5.06388867,127.81,127.79,0.05207647]
[1742257500181,7.8253,127.8,127.79,0.05207647]
[1742257504391,7.8278,127.76,127.75,10.87563192]
[1742257504592,5.06388867,127.78,127.75,10.87563192]
[1742257504891,5.59904261,127.77,127.75,10.87563192]
[1742257505091,12.89068867,127.78,127.75,10.87563192]
[1742257505291,5.59927869,127.77,127.75,10.87563192]
[1742257505487,12.89068867,127.78,127.75,10.87563192]
[1742257505692,5.65682748,127.77,127.75,10.93093588]
[1742257505894,5.59761724,127.76,127.75,10.93093588]
[1742257506389,13.42541724,127.76,127.75,10.93093588]
[1742257507287,5.59761724,127.76,127.75,10.93093588]
[1742257507990,7.8856828,127.77,127.75,10.93093588]
[1742257508494,0.0582828,127.77,127.75,10.93093588]
[1742257508992,0.0582828,127.77,127.75,0.05530396]
[1742257509390,7.8278,127.76,127.75,0.05530396]
[1742257509689,5.06388867,127.76,127.72,85.59558239]
[1742257509895,7.8296,127.73,127.7,56.3794032]
[1742257510091,7.8296,127.73,127.7,51.31551453]
[1742257510994,7.87921361,127.73,127.7,51.36594616]
[1742257511181,0.04961361,127.73,127.71,7.8307]
[1742257512298,0.04961361,127.73,127.7,7.88153163]
[1742257512800,0.04961361,127.73,127.7,0.05043163]
[1742257513097,0.04961361,127.73,127.7,7.88163163]
[1742257513298,7.87951361,127.73,127.7,0.05043163]
[1742257515596,0.04961361,127.73,127.7,0.05043163]
[1742257516701,0.04961361,127.73,127.71,7.8303]
[1742257517603,0.04961361,127.73,127.7,7.88163163]
[1742257517903,0.04961361,127.73,127.7,0.05043163]
[1742257518293,5.06388867,127.72,127.7,0.05043163]
[1742257520303,7.8308,127.71,127.7,0.05043163]
[1742257520699,12.89448867,127.72,127.7,0.05043163]
[1742257522402,7.8308,127.71,127.7,0.05043163]
[1742257523806,12.89438867,127.72,127.7,0.05043163]
[1742257524101,5.06388867,127.72,127.7,0.05043163]
[1742257524906,5.06388867,127.72,127.7,7.88153163]
[1742257525203,5.06388867,127.72,127.7,0.05043163]
[1742257526000,12.89408867,127.72,127.7,0.05043163]
[1742257527305,7.8308,127.71,127.7,0.05043163]
[1742257528109,12.89438867,127.72,127.7,0.05043163]
[1742257528606,5.06388867,127.72,127.7,0.05043163]
[1742257529110,7.8308,127.71,127.7,0.05043163]
[1742257529509,5.06388867,127.72,127.7,0.05043163]
[1742257530415,12.89438867,127.72,127.7,0.05043163]
[1742257532813,29.94151361,127.73,127.7,0.05043163]
[1742257533207,37.77141361,127.73,127.7,0.05043163]
[1742257537420,7.8302,127.72,127.7,0.05043163]
[1742257539618,37.77141361,127.73,127.7,0.05043163]
[1742257540020,2.22151361,127.73,127.7,0.05043163]
[1742257540222,0.04961361,127.73,127.71,27.72]
[1742257540515,0.04961361,127.73,127.72,5.06388867]
[1742257540724,0.04961361,127.73,127.72,12.89408867]
[1742257565440,0.04961361,127.73,127.72,14.3317975]
[1742257565634,0.04961361,127.73,127.72,12.89408867]
[1742257566339,7.8262,127.79,127.75,7.8281]
[1742257566540,6.1766,127.81,127.76,32.76388867]
[1742257567128,6.1766,127.81,127.77,7.8266]
[1742257567337,6.1766,127.81,127.76,32.76388867]
[1742257567542,0.05376276,127.8,127.78,5.12231055]
[1742257567736,0.05376276,127.8,127.78,12.94851055]
[1742257568732,0.05376276,127.8,127.78,5.12231055]
[1742257568939,0.05376276,127.8,127.78,0.05842188]
[1742257570049,7.87946276,127.8,127.78,0.05842188]
[1742257572148,0.05376276,127.8,127.78,0.05842188]
[1742257573350,7.87936276,127.8,127.78,0.05842188]
[1742257575556,7.8259,127.79,127.78,0.05842188]
[1742257575750,0.05376276,127.8,127.78,0.05842188]
[1742257576855,7.8259,127.79,127.78,0.05842188]
[1742257577352,7.87936276,127.8,127.78,0.05842188]
[1742257578155,0.05376276,127.8,127.78,0.05842188]
[1742257579555,7.87916276,127.8,127.78,0.05842188]
[1742257579857,0.05376276,127.8,127.78,0.05842188]
[1742257582864,7.87906276,127.8,127.78,0.05842188]
[1742257583459,12.94295143,127.8,127.78,0.05842188]
[1742257583764,5.06388867,127.79,127.76,27.7]
[1742257583962,5.06388867,127.78,127.74,10.87563192]
[1742257584164,14.92158867,127.77,127.74,10.87563192]
[1742257584365,5.06388867,127.76,127.74,4.31363192]
[1742257584565,7.11198867,127.76,127.74,4.31363192]
[1742257584765,14.93978867,127.76,127.74,4.31363192]
[1742257585076,14.99373214,127.76,127.74,0.05381332]
[1742257586162,7.16593214,127.76,127.74,0.05381332]
[1742257587466,2.10204347,127.76,127.74,0.05381332]
[1742257588569,2.10204347,127.76,127.74,7.88271332]
[1742257589167,2.10204347,127.76,127.74,0.05381332]
[1742257589472,9.92984347,127.76,127.74,0.05381332]
[1742257591770,2.10204347,127.76,127.74,7.88281332]
[1742257593673,2.10204347,127.76,127.74,0.05381332]
[1742257595180,9.92984347,127.76,127.74,0.05381332]
[1742257597780,2.10204347,127.76,127.74,0.05381332]
[1742257598282,9.92994347,127.76,127.74,0.05381332]
[1742257599070,7.8284,127.75,127.74,0.05381332]
[1742257599276,5.06388867,127.75,127.69,5.06388867]
[1742257599582,7.8305,127.72,127.68,127.43248964]
[1742257599781,5.06388867,127.73,127.68,127.43248964]
[1742257599983,5.06388867,127.73,127.68,119.60008964]
[1742257600185,7.8309,127.71,127.68,119.60008964]
[1742257600481,5.1152424,127.72,127.69,0.0532006]
[1742257600877,7.8313,127.71,127.69,0.0532006]
[1742257602188,7.8314,127.7,127.69,0.0532006]
[1742257604187,9.8426,127.71,127.69,0.0532006]
[1742257604892,0.05135373,127.72,127.69,0.0532006]
[1742257605083,0.05135373,127.72,127.7,5.06388867]
[1742257605386,0.05135373,127.72,127.7,40.59488867]
[1742257606184,0.05135373,127.72,127.71,12.89468867]
[1742257620795,0.05135373,127.72,127.71,40.59468867]
[1742257624606,5.373e-05,127.72,127.71,40.59468867]
[1742257626599,32.76388867,127.78,127.75,7.8279]
[1742257627598,5.06388867,127.78,127.74,35.5287]
[1742257627803,5.06388867,127.76,127.75,0.05745614]
[1742257628106,12.89188867,127.76,127.72,7.8299]
[1742257628606,40.59188867,127.76,127.72,7.8299]
[1742257629305,0.05879065,127.75,127.73,0.05680667]
[1742257635509,0.05879065,127.75,127.73,7.88630667]
[1742257637210,0.05879065,127.75,127.73,0.05680667]
[1742257638816,7.88729065,127.75,127.73,0.05680667]
[1742257640912,7.829,127.74,127.73,0.05680667]
[1742257642013,7.8304,127.72,127.68,124.66397831]
[1742257642317,7.8304,127.72,127.68,152.36397831]
[1742257642528,7.8311,127.71,127.68,147.30008964]
[1742257642813,5.06388867,127.73,127.68,119.60008964]
[1742257642814,5.06388867,127.7,127.68,119.60008964]
[1742257643214,5.11758451,127.7,127.68,119.65968443]
[1742257643913,12.89588867,127.69,127.68,116.37838443]
[1742257645121,12.89588867,127.69,127.68,0.05959479]
[1742257649724,7.8345,127.65,127.62,5.06388867]
[1742257650822,7.88844585,127.65,127.62,5.11537076]
[1742257651124,7.8355,127.64,127.62,32.81537076]
[1742257651323,0.05394585,127.65,127.62,0.05148209]
[1742257651525,7.8356,127.64,127.62,0.05148209]
[1742257652225,7.88864585,127.65,127.62,0.05148209]
[1742257652524,0.05394585,127.65,127.62,0.05148209]
[1742257652924,0.05394585,127.65,127.62,5.11537076]
[1742257653528,0.05394585,127.65,127.62,12.95137076]
[1742257654018,0.05394585,127.65,127.62,5.11537076]
[1742257654222,0.05394585,127.65,127.64,5.06388867]
[1742257655925,0.05394585,127.65,127.62,12.95147076]
[1742257656719,0.05394585,127.65,127.63,7.8356]
[1742257656923,0.05394585,127.65,127.62,5.11537076]
[1742257657324,0.05394585,127.65,127.63,7.8353]
[1742257658227,0.05394585,127.65,127.64,7.8351]
[1742257659027,0.05394585,127.65,127.64,40.59898867]
[1742257662726,27.7,127.71,127.68,7.8326]
[1742257663031,27.7,127.71,127.66,5.06388867]
[1742257663229,35.5309,127.71,127.67,7.833]
[1742257663431,7.8309,127.71,127.67,7.833]
[1742257663832,0.05537315,127.7,127.68,0.05360348]
[1742257665239,7.832,127.69,127.68,0.05360348]
[1742257666435,0.05537315,127.7,127.68,0.05360348]
[1742257667135,0.05537315,127.7,127.68,7.88620348]
[1742257667328,0.05537315,127.7,127.68,0.05360348]
[1742257667732,7.88707315,127.7,127.68,0.05360348]
[1742257669434,7.832,127.69,127.68,0.05360348]
[1742257670339,12.89588867,127.69,127.68,0.05360348]
[1742257670930,40.59588867,127.69,127.68,0.05360348]
[1742257672130,7.8334,127.67,127.64,7.8348]
[1742257672330,12.89728867,127.67,127.64,7.8348]
[1742257672634,7.834,127.66,127.63,35.5355]
[1742257672830,7.834,127.66,127.63,7.8355]
[1742257673033,5.06388867,127.67,127.61,32.76388867]
[1742257673328,0.05765277,127.66,127.63,0.0562036]
[1742257673739,0.05765277,127.66,127.64,7.8348]
[1742257678144,0.05765277,127.66,127.63,0.0562036]
[1742257678337,0.05765277,127.66,127.63,5.12009227]
[1742257679544,0.05765277,127.66,127.63,0.0562036]
[1742257680048,7.89175277,127.66,127.63,7.8919036]
[1742257680237,0.05765277,127.66,127.63,7.8919036]
[1742257681342,7.89155277,127.66,127.63,7.8919036]
[1742257684362,0.05765277,127.66,127.64,7.835]
[1742257687055,0.05765277,127.66,127.63,7.8916036]
[1742257687360,7.89165277,127.66,127.63,7.8916036]
[1742257689253,7.89165277,127.66,127.63,0.0562036]
[1742257691363,7.89165277,127.66,127.63,7.8918036]
[1742257692667,0.05765277,127.66,127.63,5.12009227]
[1742257692865,0.05765277,127.66,127.65,5.06388867]
[1742257693968,0.05765277,127.66,127.65,12.89838867]
[1742257698370,0.05765277,127.66,127.63,0.0562036]
[1742257698571,5.06388867,127.64,127.63,0.0562036]
[1742257699666,32.76388867,127.64,127.6,10.87381282]
[1742257699866,5.06388867,127.62,127.6,10.87381282]
[1742257700876,7.837,127.61,127.6,10.92591797]
[1742257701070,27.7,127.61,127.58,130.48696054]
[1742257701275,5.06388867,127.59,127.58,130.48696054]
[1742257701575,5.06388867,127.59,127.52,11.24808867]
[1742257701576,7.8388,127.58,127.55,7.8405]
[1742257702169,7.89665626,127.58,127.55,7.88041109]
[1742257702373,32.88388867,127.57,127.55,0.03991109]
[1742257702873,7.8406,127.55,127.54,10.89841275]
[1742257703074,12.90448867,127.55,127.54,10.89841275]
[1742257703473,5.06388867,127.55,127.54,10.89841275]
[1742257704975,5.06388867,127.55,127.53,87.18730201]
[1742257705175,27.92,127.54,127.53,87.18730201]
[1742257705375,27.92,127.54,127.52,130.48696054]
[1742257705576,5.06388867,127.53,127.52,130.48696054]
[1742257706180,5.06388867,127.53,127.49,7.8443]
[1742257706680,0.05990721,127.52,127.49,7.8443]
[1742257708383,0.05990721,127.52,127.5,7.8436]
[1742257708574,0.05990721,127.52,127.48,263.52388867]
[1742257709081,0.05990721,127.52,127.5,7.8437]
[1742257709583,0.05990721,127.52,127.49,7.8442]
[1742257709776,0.05990721,127.52,127.48,263.52388867]
[1742257710178,27.9,127.51,127.47,2.0834]
[1742257710380,27.9,127.51,127.47,7.14728867]
[1742257710883,27.9,127.51,127.48,7.8448]
[1742257711183,27.9,127.51,127.47,7.14728867]
[1742257711383,27.97990721,127.52,127.47,7.14728867]
[1742257711578,27.97990721,127.52,127.49,12.90788867]
[1742257713987,27.97990721,127.52,127.5,7.8437]
[1742257714189,27.97990721,127.52,127.49,5.06388867]
[1742257715077,27.97990721,127.52,127.43,259.96491999]
[1742257715283,27.92,127.52,127.47,7.8452]
[1742257715491,0.05627274,127.49,127.47,7.8452]
[1742257715694,27.98,127.52,127.48,5.06388867]
[1742257715985,27.98,127.54,127.5,5.06388867]
[1742257716381,12.90458867,127.55,127.5,12.90728867]
[1742257716578,5.06388867,127.51,127.43,1.36491999]
[1742257716786,28.18,127.5,127.45,5.06388867]
[1742257716986,0.04939534,127.48,127.46,7.90028125]
[1742257718089,0.04939534,127.48,127.46,0.05448125]
[1742257719188,0.04939534,127.48,127.46,2.17238125]
[1742257719490,0.04939534,127.48,127.46,0.05448125]
[1742257719690,0.04939534,127.48,127.46,5.11836992]
[1742257722087,0.04939534,127.48,127.46,0.05448125]
[1742257722483,7.8456,127.47,127.46,0.05448125]
[1742257724983,7.8456,127.47,127.42,7.8483]
[1742257725189,5.06388867,127.45,127.41,7.8492]
[1742257725685,5.06388867,127.45,127.41,7.8489]
[1742257725886,5.06388867,127.45,127.4,5.06388867]
[1742257726284,0.05172856,127.44,127.42,5.06388867]
[1742257726486,28.42,127.48,127.44,5.06388867]
[1742257726788,36.2652,127.48,127.44,12.91098867]
[1742257727497,28.42,127.48,127.44,12.91098867]
[1742257727792,0.05363198,127.47,127.45,7.89982006]
[1742257728693,0.05363198,127.47,127.45,0.05352006]
[1742257729893,5.06388867,127.46,127.45,0.05352006]
[1742257730995,12.91008867,127.46,127.45,0.05352006]
[1742257732098,12.91008867,127.46,127.34,8.4734355]
[1742257732099,12.90388867,127.46,127.34,8.4734355]
[1742257732397,5.06388867,127.43,127.37,5.06388867]
[1742257732695,5.06388867,127.43,127.39,7.8501]
[1742257733098,5.06388867,127.43,127.37,33.64388867]
[1742257733294,0.0543182,127.42,127.37,33.64388867]
[1742257733593,7.9033182,127.42,127.37,33.64388867]
[1742257734101,7.9033182,127.42,127.38,7.851]
[1742257734300,0.0543182,127.42,127.38,7.851]
[1742257734499,0.0543182,127.42,127.34,9.83926618]
[1742257734500,5.06388867,127.39,127.34,9.83926618]
[1742257734800,28.66,127.38,127.35,7.8525]
[1742257735002,28.71477304,127.38,127.35,7.8525]
[1742257735700,28.71477304,127.38,127.35,12.91638867]
[1742257736299,5.06388867,127.37,127.34,8.4734355]
[1742257736604,12.91558867,127.37,127.34,8.4734355]
[1742257736906,5.06388867,127.37,127.34,8.4734355]
[1742257737104,28.72,127.36,127.34,8.4734355]
[1742257739299,0.05477304,127.38,127.34,8.4734355]
[1742257739503,28.77477304,127.38,127.34,8.4734355]
[1742257739807,28.77477304,127.38,127.35,7.853]
[1742257740603,0.05477304,127.38,127.35,7.853]
[1742257742709,0.05477304,127.38,127.36,7.8523]
[1742257743010,36.5489,127.42,127.34,37.1934355]
[1742257743209,36.5489,127.42,127.35,2.0647]
[1742257743509,36.5489,127.42,127.37,7.8517]
[1742257744313,0.05526959,127.41,127.38,0.05477304]
[1742257746214,0.05526959,127.41,127.38,7.90587304]
[1742257746606,0.05526959,127.41,127.38,0.05477304]
[1742257746810,0.05526959,127.41,127.39,7.8501]
[1742257747713,0.05526959,127.41,127.38,0.05477304]
[1742257748213,0.05526959,127.41,127.38,2.15397304]
[1742257749614,0.05526959,127.41,127.39,7.8502]
[1742257749817,0.05526959,127.41,127.38,2.15397304]
[1742257750415,0.05526959,127.41,127.39,7.85]
[1742257750616,0.05526959,127.41,127.38,2.15397304]
[1742257751311,0.05526959,127.41,127.4,7.8499]
[1742257756815,0.05526959,127.41,127.38,2.15397304]
[1742257757126,5.1658874,127.41,127.38,2.15397304]
[1742257757328,13.0154874,127.41,127.38,10.00487304]
[1742257757819,5.1658874,127.41,127.38,10.00487304]
[1742257758222,13.0153874,127.41,127.38,10.00487304]
[1742257759120,13.0153874,127.41,127.39,7.8504]
[1742257759321,13.0153874,127.41,127.38,2.15397304]
[1742257759722,5.1658874,127.41,127.39,7.8504]
[1742257760515,13.0151874,127.41,127.38,10.00467304]
[1742257766123,5.18437192,127.4,127.38,10.00467304]
[1742257766516,7.90456959,127.41,127.38,10.00467304]
[1742257767828,5.18854719,127.4,127.38,10.00467304]
[1742257768220,7.90456959,127.41,127.38,10.00467304]
[1742257768733,5.11061781,127.4,127.38,0.05477304]
[1742257769033,627.11061781,127.4,127.34,8.4734355]
[1742257769225,7.8536,127.34,127.31,3.76267833]
[1742257769425,36.5136,127.34,127.31,3.76267833]
[1742257769624,41.70174112,127.34,127.31,3.76267833]
[1742257771832,7.8542,127.33,127.31,3.76267833]
[1742257772132,18.15295893,127.33,127.31,3.76267833]
[1742257772428,10.29875893,127.33,127.31,3.76267833]
[1742257772633,5.11061781,127.32,127.3,4.20381946]
[1742257772830,33.81061781,127.31,127.3,4.20381946]
[1742257773327,46.85415893,127.31,127.3,4.20381946]
[1742257774035,38.99875893,127.31,127.3,4.20381946]
[1742257774828,33.81061781,127.31,127.3,4.20381946]
[1742257776626,12.96601781,127.31,127.3,4.20381946]
[1742257778730,5.11061781,127.31,127.3,4.20381946]
[1742257779129,7.91224014,127.32,127.3,4.20381946]
[1742257781538,7.8554,127.31,127.3,4.20381946]
[1742257781738,0.05744014,127.32,127.3,4.20381946]
[1742257782127,7.91274014,127.32,127.3,4.20381946]
[1742257782743,7.8554,127.31,127.3,4.20381946]
[1742257783038,0.05744014,127.32,127.3,4.20381946]
[1742257783541,7.91274014,127.32,127.3,4.20381946]
[1742257785047,7.8554,127.31,127.3,4.20381946]
[1742257789238,0.05744014,127.32,127.3,4.20381946]
[1742257789438,363.0,127.38,127.3,4.20381946]
[1742257789645,28.7,127.37,127.31,2.0991]
[1742257789842,7.8524,127.36,127.33,7.8539]
[1742257790342,7.8524,127.36,127.32,28.72]
[1742257790545,7.908234,127.36,127.33,0.051791]
[1742257793047,7.853,127.35,127.33,0.051791]
[1742257793247,0.055834,127.36,127.33,0.051791]
[1742257793849,7.853,127.35,127.33,0.051791]
[1742257794652,7.8536,127.34,127.33,0.051791]
[1742257796047,15.85058869,127.34,127.33,0.051791]
[1742257796747,7.8554,127.31,127.3,4.20381946]
[1742257799652,36.58617202,127.32,127.3,4.20381946]
[1742257801256,41.70421354,127.32,127.3,4.20381946]
[1742257801752,7.8554,127.31,127.3,4.20381946]
[1742257802148,33.84921354,127.32,127.3,4.20381946]
[1742257803454,7.8554,127.31,127.3,4.20381946]
[1742257803649,33.84921354,127.32,127.3,4.20381946]
[1742257803955,41.70451354,127.32,127.3,4.20381946]
[1742257804456,33.84921354,127.32,127.3,12.05971946]
[1742257805254,41.70401354,127.32,127.3,4.20381946]
[1742257805454,33.84921354,127.32,127.3,4.20381946]
[1742257805656,7.8554,127.31,127.3,4.20381946]
[1742257807160,13.03412345,127.31,127.3,4.20381946]
[1742257811454,5.17872345,127.31,127.28,4.22688574]
[1742257811652,5.11804152,127.29,127.28,4.22688574]
[1742257811852,33.65804152,127.29,127.28,3.08288574]
[1742257812054,292.83804152,127.29,127.25,4.06e-05]
[1742257812255,5.11804152,127.26,127.23,1.561e-05]
[1742257812455,7.861,127.22,127.21,3.433e-05]
[1742257812648,41.85904152,127.22,127.21,3.433e-05]
[1742257813159,47.03776497,127.22,127.21,3.433e-05]
[1742257813652,386.57998283,127.2,127.15,45.88137866]
[1742257813853,5.11804152,127.16,127.14,155.03962695]
[1742257814059,37.0653,127.15,127.14,2.60984525]
[1742257814256,29.2,127.15,127.13,92.13567012]
[1742257814458,5.11804152,127.14,127.13,92.13567012]
[1742257814651,18.16266497,127.14,127.13,92.13567012]
[1742257815065,21.06596858,127.14,127.13,92.13567012]
[1742257815557,26.62449285,127.14,127.13,92.13567012]
[1742257816360,21.06596858,127.14,127.13,92.13567012]
[1742257816865,21.06596858,127.14,127.13,4.85242414]
[1742257817066,15.88724513,127.14,127.13,4.85242414]
[1742257820263,45.08724513,127.14,127.13,4.85242414]
[1742257820464,7.8672,127.12,127.11,7.09238847]
[1742257820663,37.22134513,127.14,127.1,4.83457598]
[1742257820866,0.05574068,127.13,127.1,4.83457598]
[1742257821058,7.8672,127.12,127.1,4.83457598]
[1742257821459,0.05574068,127.13,127.1,4.83457598]
[1742257821659,7.92284068,127.13,127.1,4.83457598]
[1742257822459,7.8672,127.12,127.1,4.83457598]
[1742257822963,7.92254068,127.13,127.1,4.83457598]
[1742257824163,7.8672,127.12,127.1,4.83457598]
[1742257824468,0.05574068,127.13,127.07,4.176]
[1742257824863,7.92284068,127.13,127.07,4.176]
[1742257825358,0.05574068,127.13,127.07,4.176]
[1742257825762,8.02134513,127.12,127.07,4.176]
[1742257825966,7.8684,127.1,127.07,4.176]
[1742257826268,29.24,127.11,127.07,4.176]
[1742257826469,7.92025799,127.1,127.07,4.176]
[1742257827865,29.24,127.11,127.07,4.176]
[1742257828272,29.26,127.13,127.07,41.3059]
[1742257828462,29.26,127.14,127.07,33.436]
[1742257828865,7.8657,127.15,127.09,7.8687]
[1742257829064,0.0597405,127.12,127.1,29.34998509]
[1742257829269,392.29998283,127.16,127.1,29.34998509]
[1742257829570,51.02023437,127.18,127.1,29.34998509]
[1742257829869,29.3,127.16,127.1,29.3]
[1742257830464,0.05005457,127.14,127.12,0.05935547]
[1742257832676,7.91635457,127.14,127.12,0.05935547]
[1742257833067,29.32,127.13,127.12,0.05935547]
[1742257833674,0.05005457,127.14,127.12,0.05935547]
[1742257834174,7.8665,127.13,127.12,0.05935547]
[1742257834870,8.0713997,127.14,127.12,0.05935547]
[1742257834871,15.9375997,127.14,127.12,0.05935547]
[1742257835175,0.05005457,127.14,127.08,7.2731571]
[1742257835573,0.05005457,127.14,127.09,29.52]
[1742257835874,0.05005457,127.14,127.11,7.8674]
[1742257836275,0.05005457,127.14,127.11,7.92644487]
[1742257836574,0.05005457,127.14,127.11,7.85279409]
[1742257837578,7.8666,127.13,127.11,0.05904487]
[1742257838081,0.05005457,127.14,127.08,7.2731571]
[1742257838380,7.8676,127.12,127.08,7.2731571]
[1742257838878,8.02134513,127.14,127.08,15.1426571]
[1742257839179,0.05252928,127.12,127.08,15.1426571]
[1742257839584,0.05252928,127.12,127.08,7.2731571]
[1742257840477,29.53252928,127.12,127.08,7.2731571]
[1742257840684,7.8681,127.11,127.08,7.2731571]
[1742257841079,37.39992928,127.12,127.08,7.2731571]
[1742257841780,29.53252928,127.12,127.09,7.869]
[1742257842780,29.53252928,127.12,127.08,7.2731571]
[1742257843381,7.8681,127.11,127.08,7.2731571]
[1742257843776,29.53252928,127.12,127.08,7.2731571]
[1742257843777,37.39992928,127.12,127.08,15.1427571]
[1742257844382,7.8679,127.11,127.08,7.2731571]
[1742257844583,29.53252928,127.12,127.08,7.2731571]
[1742257845684,7.8684,127.1,127.08,7.2731571]
[1742257847085,7.869,127.09,127.08,11.0]
[1742257847683,7.8687,127.1,127.08,11.0]
[1742257848481,300.84630086,127.09,127.05,34.32275753]
[1742257848881,0.05424159,127.08,127.06,7.8705]
[1742257849776,0.05424159,127.08,127.07,7.8703]
[1742257850588,0.05424159,127.08,127.06,7.8706]
[1742257851289,42.95749804,127.08,127.06,7.8706]
[1742257851789,50.82719804,127.08,127.05,42.19415753]
[1742257852182,50.82719804,127.08,127.05,12.75415753]
[1742257852487,50.82719804,127.08,127.05,4.88275753]
[1742257853586,50.82719804,127.08,127.05,12.75405753]
[1742257854186,42.95749804,127.08,127.05,12.75405753]
[1742257855194,50.82719804,127.08,127.05,12.75405753]
[1742257855794,5.13521571,127.07,127.04,1e-08]
[1742257855996,5.13521571,127.05,127.04,1e-08]
[1742257856287,13.00671571,127.05,127.04,1e-08]
[1742257856992,18.5917962,127.05,127.04,1e-08]
[1742257857189,4.5779,127.05,127.04,1e-08]
[1742257857385,39.60280624,127.05,127.04,1e-08]
[1742257857796,44.77818656,127.05,127.04,1e-08]
[1742257857995,8.0307712,127.04,127.0,7.43907143]
[1742257858192,8.0307712,127.02,127.0,7.43907143]
[1742257858391,45.5041712,127.02,127.0,7.43907143]
[1742257858694,37.4734,127.02,127.0,7.43907143]
[1742257859597,29.6,127.02,127.0,7.43907143]
[1742257859797,29.76,127.02,127.0,7.43907143]
[1742257860293,0.05456641,127.04,127.0,7.43907143]
[1742257860896,0.05456641,127.04,127.02,7.873]
[1742257861094,35.34120104,127.07,127.01,29.78]
[1742257861095,258.05490187,127.05,127.01,29.78]
[1742257861292,248.17230187,127.05,127.01,29.78]
[1742257861494,238.28970187,127.05,127.02,8.0307712]
[1742257861698,42.69228208,127.07,127.02,8.0307712]
[1742257861891,42.69228208,127.07,127.05,7.8713]